bitfinex/quotes_BTCUSD_20250213
["timestamp","ask_amount","ask_price","bid_price","bid_amount"]
[1739453507908,0.10250365,96032.0,96001.0,0.20833]
[1739453508133,0.208261,96033.0,96002.0,0.10354499]
[1739453508340,0.5,96040.0,96003.0,0.358326]
[1739453508566,0.5,96040.0,96014.0,0.15]
[1739453508777,0.156202,96030.0,96017.0,0.231296]
[1739453508985,0.156197,96033.0,96019.0,0.15]
[1739453509208,0.5,96040.0,96029.0,0.156202]
[1739453509433,0.5,96040.0,96023.0,0.156211]
[1739453509646,0.156199,96032.0,96024.0,0.10250365]
[1739453509851,0.156195,96034.0,96025.0,0.156208]
[1739453510067,0.156194,96035.0,96026.0,0.25871065]
[1739453510268,0.5,96040.0,96027.0,0.00104118]
[1739453510505,0.5,96040.0,96028.0,0.10250365]
[1739453510726,0.5,96040.0,96033.0,0.156194]
[1739453510937,0.5,96040.0,96036.0,0.15619]
[1739453511142,0.5,96040.0,96037.0,0.10250365]
[1739453511992,0.5,96040.0,96029.0,0.15]
[1739453512202,0.5,96040.0,96023.0,0.007]
[1739453512203,0.156207,96026.0,96023.0,0.007]
[1739453512623,0.156207,96026.0,96010.0,0.00104118]
[1739453512855,0.156207,96026.0,96004.0,0.202242]
[1739453513053,0.156207,96026.0,96008.0,0.08322194]
[1739453513277,0.156207,96026.0,96004.0,0.202243]
[1739453513278,0.156207,96026.0,96005.0,0.15]
[1739453513481,0.156207,96026.0,96006.0,0.00104134]
[1739453513691,0.156207,96026.0,95998.0,0.08322194]
[1739453513899,0.156207,96026.0,96024.0,0.00713205]
[1739453515224,0.156207,96026.0,96024.0,0.00013205]
[1739453515474,0.156207,96026.0,96024.0,0.00713205]
[1739453515677,0.15592,96035.0,96024.0,0.00713205]
[1739453515678,0.15592,96035.0,96025.0,0.10250365]
[1739453515884,0.15592,96035.0,96026.0,0.00104118]
[1739453516097,0.15592,96035.0,96034.0,0.156194]
[1739453516317,0.15592,96035.0,96034.0,0.10250365]
[1739453517534,0.15592,96035.0,96025.0,0.007]
[1739453517747,0.156204,96028.0,96027.0,0.15]
[1739453517945,0.208269,96030.0,96027.0,0.15]
[1739453518077,0.156204,96029.0,96027.0,0.15]
[1739453518283,0.00022387,96038.0,96027.0,0.15]
[1739453518505,0.00022387,96038.0,96036.0,0.15619]
[1739453518708,0.00022387,96038.0,96037.0,0.10250365]
[1739453519111,0.00022387,96038.0,96022.0,0.15]
[1739453519266,0.156204,96028.0,96025.0,0.00104114]
[1739453519469,0.00022387,96038.0,96021.0,0.15]
[1739453519666,0.156208,96026.0,96024.0,0.00117324]
[1739453519922,0.00022387,96038.0,96024.0,0.15013205]
[1739453520127,0.00022387,96038.0,96025.0,0.10354483]
[1739453520280,0.00022387,96038.0,96026.0,0.15]
[1739453520483,0.00022387,96038.0,96027.0,0.10354476]
[1739453520685,0.208253,96037.0,96027.0,0.25250365]
[1739453520899,0.00022387,96038.0,96027.0,0.25250365]
[1739453520900,0.00022387,96038.0,96029.0,0.156202]
[1739453521099,0.00022387,96038.0,96032.0,0.156196]
[1739453521296,0.00022387,96038.0,96034.0,0.15]
[1739453521503,0.00022387,96038.0,96037.0,0.156189]
[1739453521766,0.00022387,96038.0,96037.0,0.25973373]
[1739453521992,0.00022387,96038.0,96037.0,0.43169265]
[1739453522627,0.208125,96096.0,96049.0,0.32917]
[1739453522810,0.0953791,96050.0,96049.0,0.43167365]
[1739453523030,0.15592,96108.0,96050.0,0.173]
[1739453523192,0.15592,96108.0,96070.0,0.15]
[1739453523539,0.156132,96072.0,96071.0,0.10250365]
[1739453523655,0.33738851,96110.0,96071.0,0.10250365]
[1739453523656,0.33738851,96130.0,96072.0,0.023]
[1739453523852,0.10380007,96128.0,96076.0,0.15]
[1739453524119,0.15,96107.0,96061.0,0.08322194]
[1739453524356,0.15,96105.0,96072.0,0.08322194]
[1739453524547,0.156115,96083.0,96082.0,0.08322194]
[1739453524743,0.33738851,96130.0,96084.0,0.156112]
[1739453524945,0.33738851,96130.0,96085.0,0.00104047]
[1739453524946,0.25968007,96128.0,96085.0,0.00104047]
[1739453525160,0.10250365,96118.0,96072.0,0.08322194]
[1739453525349,0.15129642,96117.0,96082.0,0.08322194]
[1739453525492,0.156115,96083.0,96082.0,0.08322194]
[1739453525698,0.15655529,96083.0,96082.0,0.08322194]
[1739453525971,0.156131,96073.0,96072.0,0.08322194]
[1739453526483,0.156147,96063.0,96053.0,0.15]
[1739453526925,0.33738851,96080.0,96037.0,0.00022386]
[1739453527140,0.156184,96040.0,96037.0,0.00022386]
[1739453527554,0.156188,96038.0,96037.0,0.00022386]
[1739453527767,0.25869165,96038.0,96037.0,0.00022386]
[1739453528398,0.46630623,96038.0,95998.0,0.17607193]
[1739453528599,0.156251,95999.0,95998.0,0.17607193]
[1739453528801,0.25875465,95999.0,95998.0,0.09298204]
[1739453529226,0.40875465,95999.0,95998.0,0.03047804]
[1739453529456,0.40875465,95999.0,95998.0,4e-08]
[1739453529457,0.43175465,95999.0,95998.0,4e-08]
[1739453529702,0.40875465,95999.0,95998.0,4e-08]
[1739453529912,0.25875465,95999.0,95998.0,0.00500004]
[1739453530530,0.28961647,95999.0,95998.0,0.00500004]
[1739453531230,0.28961647,95999.0,95998.0,4e-08]
[1739453531231,0.18711282,95999.0,95998.0,4e-08]
[1739453531441,0.161251,95999.0,95998.0,4e-08]
[1739453531591,0.26505107,95999.0,95998.0,4e-08]
[1739453531793,0.41375465,95999.0,95998.0,4e-08]
[1739453532049,0.40875465,95999.0,95998.0,4e-08]
[1739453532394,0.40875465,95999.0,95998.0,0.00400004]
[1739453532732,0.40875465,95999.0,95987.0,7.4e-07]
[1739453532733,0.156269,95988.0,95987.0,7.4e-07]
[1739453532893,0.26006907,95988.0,95987.0,7.4e-07]
[1739453533084,0.25877265,95988.0,95987.0,7.4e-07]
[1739453533316,0.28177265,95988.0,95987.0,7.4e-07]
[1739453533515,0.28177265,95988.0,95968.0,0.00022302]
[1739453533516,0.273,95987.0,95968.0,0.00022302]
[1739453533876,0.306328,95952.0,95951.0,0.0004]
[1739453534173,0.306328,95952.0,95900.0,0.08322194]
[1739453534174,0.15,95951.0,95900.0,0.08322194]
[1739453534381,0.306359,95933.0,95900.0,0.08322194]
[1739453534594,0.306359,95933.0,95891.0,0.0001066]
[1739453534595,0.306368,95927.0,95891.0,0.0001066]
[1739453534810,0.329368,95927.0,95891.0,0.0001066]
[1739453535003,0.208487,95929.0,95891.0,0.0001066]
[1739453535004,0.156393,95912.0,95891.0,0.0001066]
[1739453535220,0.41485665,95912.0,95891.0,0.0001066]
[1739453535425,0.25846365,95912.0,95911.0,0.00083975]
[1739453535847,0.15596,95912.0,95911.0,0.00083975]
[1739453536289,0.15596,95934.0,95911.0,0.00083975]
[1739453536515,0.156393,95913.0,95911.0,0.00083975]
[1739453536730,0.25889665,95913.0,95911.0,0.00083975]
[1739453536975,0.10250365,95912.0,95911.0,0.00083975]
[1739453537180,0.03075489,95928.0,95911.0,0.00083975]
[1739453537381,0.03075489,95928.0,95912.0,0.00104248]
[1739453537791,0.15639,95914.0,95911.0,0.00083975]
[1739453537990,0.156393,95912.0,95911.0,0.00083975]
[1739453538627,0.156393,95912.0,95911.0,0.00783975]
[1739453538628,0.157393,95912.0,95911.0,0.00783975]
[1739453539045,0.157393,95912.0,95911.0,0.00794635]
[1739453539907,0.156393,95912.0,95911.0,0.00094635]
[1739453540523,0.25889665,95912.0,95911.0,0.00094635]
[1739453540781,0.148893,95912.0,95911.0,0.00094635]
[1739453541203,0.25139665,95912.0,95911.0,0.00094635]
[1739453541415,0.40139665,95912.0,95911.0,0.00594635]
[1739453541828,0.42439665,95912.0,95911.0,0.00094635]
[1739453542180,0.45600124,95912.0,95911.0,0.00754635]
[1739453542408,0.156408,95903.0,95902.0,3.5e-07]
[1739453542618,0.26020807,95903.0,95902.0,0.00013268]
[1739453542791,0.25891165,95903.0,95902.0,0.00013268]
[1739453542976,0.23913059,95912.0,95902.0,0.00013268]
[1739453542977,0.03560459,95912.0,95902.0,0.00013268]
[1739453543183,0.03060459,95903.0,95902.0,0.00117531]
[1739453543384,0.03060459,95903.0,95902.0,0.10367896]
[1739453543584,0.03060459,95903.0,95902.0,0.25263633]
[1739453543808,0.03060459,95903.0,95902.0,0.15013268]
[1739453544215,0.03060459,95903.0,95902.0,0.00013268]
[1739453544423,0.156407,95904.0,95902.0,0.00013268]
[1739453544669,0.10650365,95903.0,95902.0,0.00013268]
[1739453545081,0.10380007,95903.0,95902.0,0.00013268]
[1739453545308,0.13440466,95903.0,95902.0,0.00013268]
[1739453545514,0.13440466,95903.0,95902.0,0.00213268]
[1739453545941,0.03060459,95903.0,95902.0,0.00013268]
[1739453546406,0.03060459,95903.0,95902.0,0.00513268]
[1739453546544,0.03060459,95903.0,95902.0,0.15513268]
[1739453546742,0.03060459,95903.0,95902.0,0.25763633]
[1739453546989,0.03060459,95903.0,95902.0,0.15513268]
[1739453547196,0.04365476,95949.0,95902.0,0.25763633]
[1739453547395,0.10250365,95941.0,95905.0,0.023]
[1739453547618,0.10250365,95941.0,95919.0,0.15638]
[1739453547839,0.10250365,95941.0,95902.0,0.00013268]
[1739453548051,0.156407,95904.0,95902.0,0.00513268]
[1739453548607,0.156407,95904.0,95902.0,0.00013268]
[1739453549589,0.1564,95908.0,95902.0,0.00013268]
[1739453549843,0.15608,95913.0,95902.0,0.00013268]
[1739453550068,0.15608,95913.0,95902.0,0.10263633]
[1739453550274,0.15608,95913.0,95911.0,0.156394]
[1739453550477,0.15608,95913.0,95912.0,0.27550365]
[1739453550688,0.04901217,95987.0,95913.0,0.023]
[1739453550894,0.00022408,95940.0,95939.0,0.306349]
[1739453551113,0.00022408,95940.0,95939.0,0.43185265]
[1739453551536,0.03054746,95949.0,95948.0,0.306334]
[1739453551751,0.03054746,95949.0,95948.0,0.43183765]
[1739453552245,0.03054746,95949.0,95948.0,0.25263598]
[1739453552449,0.156314,95961.0,95952.0,0.15]
[1739453552669,0.156325,95954.0,95952.0,0.25250365]
[1739453552875,0.156321,95957.0,95952.0,0.25250365]
[1739453553082,0.208374,95981.0,95952.0,0.25250365]
[1739453553288,0.03054746,95994.0,95948.0,0.00013233]
[1739453553289,0.156333,95949.0,95948.0,0.00013233]
[1739453553490,0.156331,95950.0,95948.0,0.00013233]
[1739453553694,0.10380007,95978.0,95948.0,0.00013233]
[1739453553871,0.156325,95954.0,95948.0,0.00013233]
[1739453554106,0.10250365,95977.0,95948.0,0.10963598]
[1739453554314,0.33738851,96000.0,95949.0,0.10354573]
[1739453554526,0.10250365,95977.0,95950.0,0.0010419]
[1739453554739,0.10250365,95976.0,95948.0,0.00013233]
[1739453554965,0.03054746,95980.0,95951.0,0.10354558]
[1739453555180,0.03054746,95980.0,95955.0,0.173]
[1739453555409,0.156271,95987.0,95979.0,0.156284]
[1739453555614,0.15608,95996.0,95981.0,0.15628]
[1739453555834,0.15608,95996.0,95958.0,0.0777]
[1739453555835,0.15608,95996.0,95991.0,0.156263]
[1739453556060,0.20827,96029.0,95983.0,0.15]
[1739453556280,0.01,96060.0,95994.0,0.15]
[1739453556281,0.10250365,96028.0,95994.0,0.15]
[1739453556493,0.0004,96049.0,96011.0,0.15623]
[1739453556494,0.156218,96020.0,96011.0,0.15623]
[1739453556715,0.208239,96044.0,95997.0,0.208339]
[1739453556716,0.00066445,96036.0,96013.0,0.208305]
[1739453556920,0.00066445,96036.0,96014.0,0.0010413]
[1739453557131,0.208257,96035.0,96015.0,0.00104126]
[1739453557342,0.00066445,96036.0,96016.0,0.00104127]
[1739453557547,0.03084689,96035.0,96017.0,0.10250365]
[1739453557753,0.03084689,96035.0,96018.0,0.00104121]
[1739453557962,0.156217,96021.0,96019.0,0.10354487]
[1739453558166,0.03084689,96035.0,96012.0,0.00104129]
[1739453558368,0.15622,96019.0,96014.0,0.15]
[1739453558574,0.156223,96016.0,96015.0,0.003]
[1739453559029,0.03084689,96020.0,95994.0,0.00104144]
[1739453559244,0.2083,96015.0,95996.0,0.15]
[1739453559448,0.208302,96014.0,96012.0,0.007]
[1739453560123,0.10250365,96013.0,96012.0,0.007]
[1739453560537,0.208302,96014.0,96012.0,0.007]
[1739453560743,0.03084689,96019.0,95992.0,0.00104145]
[1739453560961,0.03084689,96019.0,96015.0,0.007]
[1739453561172,0.156223,96016.0,96015.0,0.007]
[1739453561584,0.156262,95993.0,95991.0,0.08322194]
[1739453562169,0.156266,95990.0,95982.0,0.15]
[1739453562375,0.208328,96003.0,95981.0,0.23950194]
[1739453562376,0.156261,95993.0,95984.0,0.15]
[1739453562531,0.156268,95989.0,95984.0,0.25250365]
[1739453562744,0.156273,95986.0,95984.0,0.25250365]
[1739453562935,0.0004401,95989.0,95960.0,0.0493]
[1739453563143,0.0004401,95989.0,95961.0,0.10250365]
[1739453563370,0.156313,95961.0,95960.0,0.0493]
[1739453563570,0.156313,95961.0,95960.0,0.15180365]
[1739453563727,0.208414,95963.0,95960.0,0.15180365]
[1739453563927,0.156,95981.0,95961.0,0.10250365]
[1739453564128,0.156297,95971.0,95962.0,0.15735282]
[1739453564372,0.156,95981.0,95965.0,0.156305]
[1739453564592,0.156297,95971.0,95966.0,0.00104182]
[1739453565045,0.03080838,95980.0,95979.0,0.156284]
[1739453565177,0.03080838,95980.0,95979.0,0.40878765]
[1739453565381,0.03080838,95980.0,95979.0,0.43178765]
[1739453566328,0.0004401,95989.0,95980.0,0.15]
[1739453566554,0.0004401,95989.0,95988.0,0.329269]
[1739453566761,0.0004401,95989.0,95988.0,0.43177265]
[1739453566968,0.03080838,96013.0,96012.0,0.15623]
[1739453567153,0.03094033,96013.0,96012.0,0.30623]
[1739453567360,0.00013195,96013.0,96012.0,0.40873365]
[1739453567598,0.00013195,96013.0,96012.0,0.15]
[1739453568412,0.00013195,96013.0,96012.0,0.25354502]
[1739453568610,0.00013195,96013.0,96012.0,0.27550365]
[1739453568819,0.00013195,96013.0,96012.0,0.28250365]
[1739453569430,0.00013195,96013.0,96012.0,0.27550365]
[1739453569846,0.00013195,96013.0,96012.0,0.28250365]
[1739453570897,0.02666667,96018.0,96012.0,0.28250365]
[1739453571136,0.156128,96075.0,96035.0,0.306193]
[1739453571373,0.08322194,96088.0,96035.0,1.51450561]
[1739453571593,0.208172,96075.0,96035.0,1.51450561]
[1739453571803,8e-08,96036.0,96035.0,1.51450561]
[1739453572008,0.20815,96085.0,96044.0,0.306178]
[1739453572223,0.0004,96089.0,96044.0,0.43168165]
[1739453572430,0.0004,96089.0,96056.0,0.306158]
[1739453572644,0.208152,96084.0,96056.0,0.43166165]
[1739453572848,0.0004,96089.0,96056.0,0.43166165]
[1739453573065,0.156113,96084.0,96056.0,0.43166165]
[1739453573274,0.156107,96088.0,96056.0,0.43166165]
[1739453573444,0.0004,96089.0,96056.0,0.43166165]
[1739453574753,0.0004,96089.0,96057.0,0.173]
[1739453574956,0.0004,96089.0,96088.0,0.306106]
[1739453575166,0.0004,96089.0,96088.0,0.43160965]
[1739453575848,0.00022387,96110.0,96109.0,0.329072]
[1739453576056,0.00022387,96110.0,96109.0,0.25250365]
[1739453576265,0.00066463,96110.0,96109.0,0.25250365]
[1739453576683,0.00066463,96110.0,96109.0,0.27550365]
[1739453578659,0.00066463,96110.0,96109.0,0.28250365]
[1739453579094,0.00022408,96126.0,96125.0,0.306046]
[1739453579303,0.00035625,96126.0,96125.0,0.43154965]
[1739453582168,0.0001065,96150.0,96125.0,0.43154965]
[1739453582169,0.0001065,96150.0,96132.0,0.306035]
[1739453582370,0.0001065,96150.0,96146.0,0.329012]
[1739453582579,0.0001065,96150.0,96146.0,0.43151565]
[1739453582984,0.0001065,96150.0,96146.0,0.27550365]
[1739453583774,0.0001065,96150.0,96146.0,0.28250365]
[1739453583978,0.15601,96148.0,96146.0,0.25950365]
[1739453584189,0.15601,96148.0,96146.0,0.007]
[1739453584399,0.0001065,96150.0,96146.0,0.007]
[1739453584603,0.1561176,96147.0,96146.0,0.007]
[1739453585019,0.25862125,96147.0,96146.0,0.007]
[1739453585220,0.156058,96118.0,96117.0,0.08322194]
[1739453585431,0.156057,96119.0,96117.0,0.08322194]
[1739453585846,0.208063,96125.0,96117.0,0.08322194]
[1739453586061,0.0001066,96147.0,96118.0,0.10354387]
[1739453586270,0.156028,96136.0,96135.0,0.00022365]
[1739453586478,0.0011066,96147.0,96126.0,0.15]
[1739453586697,0.0011066,96147.0,96129.0,0.156039]
[1739453586919,0.0001066,96147.0,96130.0,0.10250365]
[1739453587139,0.0001066,96147.0,96131.0,0.15]
[1739453587352,0.0001066,96147.0,96136.0,0.15]
[1739453587560,0.0001066,96147.0,96146.0,0.156012]
[1739453587771,0.0001066,96147.0,96146.0,0.25250365]
[1739453588609,0.0001066,96147.0,96146.0,0.27550365]
[1739453589664,0.0001066,96147.0,96146.0,0.25250365]
[1739453590085,0.0001066,96147.0,96146.0,0.25950365]
[1739453590591,0.0001066,96147.0,96146.0,0.10950365]
[1739453591222,0.0001066,96147.0,96146.0,0.28250365]
[1739453591636,0.0001066,96147.0,96146.0,0.27550365]
[1739453591858,0.0001066,96147.0,96146.0,0.25950365]
[1739453592273,0.0001066,96147.0,96146.0,0.25250365]
[1739453592482,0.0001066,96147.0,96146.0,0.27550365]
[1739453592696,0.0001066,96147.0,96146.0,0.28250365]
[1739453593128,0.0001066,96147.0,96146.0,0.27550365]
[1739453593543,0.0001066,96147.0,96146.0,0.28250365]
[1739453594637,0.0001066,96147.0,96146.0,0.34100365]
[1739453594850,0.0001066,96147.0,96146.0,0.32400365]
[1739453595061,0.0001065,96150.0,96149.0,0.306007]
[1739453595273,0.0001065,96150.0,96149.0,0.40851065]
[1739453595702,0.0001065,96150.0,96149.0,0.43151065]
[1739453596346,0.0001065,96150.0,96149.0,0.10250365]
[1739453596812,0.0001065,96150.0,96149.0,0.13250365]
[1739453597038,0.0001065,96150.0,96149.0,0.28250365]
[1739453597244,0.0052786,96165.0,96164.0,0.305983]
[1739453597449,0.0052786,96165.0,96164.0,0.43148665]
[1739453597658,0.00541067,96165.0,96164.0,0.43148665]
[1739453598524,0.00022387,96186.0,96164.0,0.43148665]
[1739453598525,0.00022387,96186.0,96179.0,0.328959]
[1739453598736,0.00022387,96186.0,96179.0,0.43146265]
[1739453598948,0.00022387,96186.0,96165.0,0.0804]
[1739453598949,0.00022387,96186.0,96150.0,0.33738851]
[1739453599155,0.00022387,96186.0,96164.0,0.007]
[1739453599365,0.155981,96165.0,96164.0,0.007]
[1739453599578,0.00022387,96186.0,96152.0,0.08322194]
[1739453599791,0.00022387,96186.0,96144.0,0.00013207]
[1739453599792,0.156014,96145.0,96144.0,0.00013207]
[1739453600206,0.0001065,96180.0,96144.0,0.10263572]
[1739453600415,0.156011,96147.0,96145.0,0.10250365]
[1739453600660,0.156014,96145.0,96144.0,0.00013207]
[1739453600875,0.156014,96145.0,96144.0,0.10263572]
[1739453601087,0.156014,96145.0,96144.0,0.00013207]
[1739453601703,0.207947,96178.0,96144.0,0.10263572]
[1739453601924,0.33738851,96200.0,96145.0,0.10250365]
[1739453602130,0.207915,96193.0,96146.0,0.023]
[1739453602337,0.155998,96155.0,96147.0,0.25851365]
[1739453602551,0.207945,96179.0,96152.0,0.023]
[1739453602761,0.207959,96173.0,96158.0,0.155993]
[1739453602969,0.207911,96195.0,96167.0,0.155977]
[1739453602970,0.155959,96179.0,96167.0,0.155977]
[1739453603206,0.207923,96190.0,96168.0,0.10250365]
[1739453603428,0.155974,96170.0,96168.0,0.10250365]
[1739453603628,0.54531151,96190.0,96161.0,0.15]
[1739453603828,0.207945,96179.0,96163.0,0.15]
[1739453604031,0.207901,96200.0,96165.0,0.357974]
[1739453604234,0.207901,96200.0,96166.0,0.10250365]
[1739453604437,0.155977,96168.0,96166.0,0.10250365]
[1739453604638,0.15598,96166.0,96165.0,0.15]
[1739453605069,0.207966,96170.0,96150.0,0.08322194]
[1739453605070,0.156004,96151.0,96150.0,0.08322194]
[1739453605207,0.207945,96179.0,96150.0,0.18572559]
[1739453605409,0.207949,96177.0,96151.0,0.10250365]
[1739453605816,0.155989,96161.0,96158.0,0.004]
[1739453606019,0.155991,96160.0,96158.0,0.004]
[1739453606247,0.155996,96156.0,96154.0,0.15]
[1739453606370,0.00022387,96186.0,96156.0,0.15]
[1739453606572,0.00022387,96186.0,96158.0,0.15]
[1739453606777,0.00152349,96186.0,96147.0,0.15]
[1739453607004,0.00022387,96186.0,96150.0,0.002]
[1739453607238,0.156003,96152.0,96151.0,0.10250365]
[1739453607409,0.156003,96152.0,96150.0,0.002]
[1739453608542,0.156014,96145.0,96135.0,0.00022365]
[1739453608960,0.33849501,96180.0,96144.0,0.10263572]
[1739453609133,0.0011065,96180.0,96145.0,0.13468388]
[1739453609338,0.0001065,96180.0,96148.0,0.15]
[1739453609551,0.155988,96161.0,96150.0,0.15]
[1739453609762,0.0001065,96180.0,96158.0,0.155992]
[1739453609959,0.207947,96178.0,96159.0,0.03218023]
[1739453610123,0.207952,96176.0,96160.0,0.03218023]
[1739453610325,0.0001065,96180.0,96161.0,0.13468388]
[1739453610527,0.0001065,96180.0,96162.0,0.03218023]
[1739453610528,0.2090495,96180.0,96162.0,0.03218023]
[1739453610747,0.0011065,96180.0,96163.0,0.13468388]
[1739453610958,0.0011065,96180.0,96164.0,0.03218023]
[1739453611224,0.0011065,96180.0,96165.0,0.13468388]
[1739453611427,0.0011065,96180.0,96169.0,0.023]
[1739453611640,0.0011065,96180.0,96170.0,0.13468388]
[1739453611766,0.0001065,96180.0,96171.0,0.15]
[1739453611968,0.0001065,96180.0,96179.0,0.155959]
[1739453612216,0.0001065,96180.0,96179.0,0.46364288]
[1739453612814,0.00022387,96186.0,96185.0,0.328949]
[1739453613008,0.00022387,96186.0,96185.0,0.46363288]
[1739453613693,0.00022387,96186.0,96185.0,0.30768388]
[1739453614041,0.00022387,96186.0,96185.0,0.28468388]
[1739453614240,0.155945,96188.0,96186.0,0.15]
[1739453614446,0.00053202,96209.0,96188.0,0.15]
[1739453614659,0.15594,96191.0,96190.0,0.15]
[1739453614858,0.15594,96191.0,96190.0,0.25250365]
[1739453615288,0.155947,96186.0,96185.0,0.007]
[1739453615665,0.155972,96171.0,96165.0,1.03420896]
[1739453615872,0.155972,96171.0,96170.0,0.18572559]
[1739453616090,0.155972,96171.0,96170.0,0.10250365]
[1739453616528,0.155971,96172.0,96170.0,0.10250365]
[1739453616730,0.155947,96186.0,96185.0,0.007]
[1739453616926,0.25845065,96186.0,96185.0,0.007]
[1739453617683,0.155947,96186.0,96185.0,0.007]
[1739453618084,0.155939,96192.0,96158.0,0.173]
[1739453618285,0.15568,96202.0,96170.0,0.007]
[1739453618538,0.15568,96202.0,96172.0,0.15]
[1739453618741,0.15568,96202.0,96174.0,0.15]
[1739453618944,0.155943,96189.0,96175.0,0.1346972]
[1739453619279,0.0004,96209.0,96175.0,0.1346972]
[1739453619280,0.207917,96193.0,96177.0,0.207949]
[1739453619390,0.207893,96203.0,96176.0,0.15]
[1739453619598,0.33738851,96200.0,96158.0,0.08322194]
[1739453619836,0.1038032,96199.0,96159.0,0.13470362]
[1739453620037,0.155965,96175.0,96174.0,0.007]
[1739453620906,0.207908,96196.0,96174.0,0.007]
[1739453621097,0.15568,96200.0,96174.0,0.007]
[1739453621302,0.155965,96175.0,96166.0,0.155979]
[1739453621620,0.155967,96174.0,96167.0,0.10250365]
[1739453621832,0.00013202,96200.0,96168.0,0.023]
[1739453622037,0.0001065,96186.0,96181.0,0.155955]
[1739453622245,0.0001065,96186.0,96185.0,0.155949]
[1739453622469,0.00136944,96222.0,96182.0,0.207939]
[1739453622470,1.111533,96249.0,96182.0,0.155954]
[1739453622681,0.15,96219.0,96183.0,0.08009494]
[1739453622888,0.155934,96194.0,96193.0,0.08322194]
[1739453623301,0.207897,96202.0,96193.0,0.08322194]
[1739453623509,0.15568,96203.0,96193.0,0.08322194]
[1739453624552,0.15,96229.0,96183.0,0.08009494]
[1739453624742,0.33738851,96210.0,96183.0,0.08022696]
[1739453624915,0.155936,96194.0,96183.0,0.08022696]
[1739453625092,0.155951,96184.0,96183.0,0.08022696]
[1739453625294,0.155551,96184.0,96183.0,0.00013202]
[1739453625504,0.33738851,96200.0,96193.0,0.002]
[1739453625703,0.155934,96194.0,96193.0,0.002]
[1739453625914,0.10380319,96199.0,96183.0,0.00013202]
[1739453626512,0.10380319,96199.0,96183.0,0.00713202]
[1739453626709,0.21817017,96220.0,96184.0,0.08322194]
[1739453626963,0.10380307,96219.0,96184.0,0.08322194]
[1739453627131,0.00129933,96218.0,96185.0,0.155949]
[1739453627330,0.10250365,96217.0,96184.0,0.29115594]
[1739453627557,0.15697933,96216.0,96184.0,0.08322194]
[1739453627761,0.10250365,96215.0,96184.0,0.08322194]
[1739453628088,0.00129933,96214.0,96184.0,0.08322194]
[1739453628210,0.155913,96208.0,96191.0,0.155938]
[1739453628512,0.207867,96215.0,96198.0,0.08322194]
[1739453628914,0.155909,96210.0,96198.0,0.08322194]
[1739453629209,0.002,96215.0,96203.0,0.155918]
[1739453629439,0.15568,96216.0,96198.0,0.08322194]
[1739453629650,0.15568,96216.0,96190.0,0.21817017]
[1739453629815,0.15568,96216.0,96198.0,0.001]
[1739453630216,0.15568,96216.0,96200.0,0.155924]
[1739453630446,0.21817017,96260.0,96203.0,0.08322194]
[1739453630650,0.10250365,96258.0,96220.0,0.21817017]
[1739453630845,0.10250365,96258.0,96222.0,0.155888]
[1739453631076,0.00129889,96257.0,96224.0,0.08322194]
[1739453631275,0.10250365,96256.0,96224.0,0.08322194]
[1739453631480,0.155884,96226.0,96224.0,0.08322194]
[1739453632102,0.00043997,96226.0,96224.0,0.08322194]
[1739453632291,0.00043997,96226.0,96225.0,0.10250365]
[1739453632663,0.00043997,96226.0,96225.0,0.25838765]
[1739453632864,0.00043997,96226.0,96225.0,0.40838765]
[1739453633039,0.00043997,96226.0,96225.0,0.43138765]
[1739453634107,0.00054647,96226.0,96225.0,0.43138765]
[1739453634864,0.00054647,96226.0,96225.0,0.51298765]
[1739453635889,0.00054647,96226.0,96225.0,0.51998765]
[1739453636314,0.00054647,96226.0,96225.0,0.51298765]
[1739453636525,0.00054647,96226.0,96225.0,0.51998765]
[1739453636953,0.00054647,96226.0,96225.0,0.34110365]
[1739453637577,0.00054647,96226.0,96225.0,0.36410365]
[1739453637773,0.00054647,96226.0,96225.0,1.39831261]
[1739453637986,0.00054647,96226.0,96225.0,0.36410365]
[1739453638186,0.00129846,96271.0,96225.0,0.44732559]
[1739453638389,0.15582,96265.0,96241.0,0.15]
[1739453638652,0.00129848,96285.0,96245.0,0.15]
[1739453638864,0.10250365,96284.0,96247.0,0.15]
[1739453639074,0.15579,96284.0,96268.0,0.155814]
[1739453639276,0.00013203,96292.0,96260.0,0.21817017]
[1739453639486,0.00013203,96292.0,96266.0,0.08322194]
[1739453639708,0.00013203,96292.0,96276.0,0.08322194]
[1739453639912,0.00013203,96292.0,96277.0,0.10250365]
[1739453640335,0.00013203,96292.0,96276.0,0.08322194]
[1739453640762,0.00013203,96292.0,96277.0,0.10250365]
[1739453641435,0.00013203,96292.0,96291.0,0.155777]
[1739453641658,0.21817017,96350.0,96291.0,0.00103835]
[1739453641867,0.32067382,96340.0,96302.0,0.15]
[1739453642077,0.00043961,96323.0,96305.0,0.15]
[1739453642283,0.00043961,96323.0,96322.0,0.15]
[1739453642485,0.00043961,96323.0,96322.0,0.305727]
[1739453643333,0.00043961,96323.0,96322.0,0.53613065]
[1739453643783,0.00043961,96323.0,96322.0,0.38040365]
[1739453645223,0.00043961,96323.0,96322.0,0.38990989]
[1739453645829,0.00043961,96323.0,96322.0,0.41290989]
[1739453646039,0.00043961,96323.0,96322.0,0.39690989]
[1739453646258,0.00043961,96323.0,96322.0,0.24690989]
[1739453646464,0.00054611,96323.0,96322.0,0.14440624]
[1739453646668,0.00054611,96323.0,96322.0,0.283627]
[1739453646870,0.15627211,96323.0,96322.0,0.1349]
[1739453647077,0.00054611,96323.0,96322.0,0.0541]
[1739453647292,0.00054611,96323.0,96322.0,0.2041]
[1739453647293,0.00594137,96323.0,96322.0,0.2041]
[1739453647515,0.00054611,96323.0,96322.0,0.30764168]
[1739453647719,0.00054611,96323.0,96322.0,0.30660365]
[1739453648347,0.00054611,96323.0,96322.0,0.29960365]
[1739453648571,0.00054611,96323.0,96322.0,0.32260365]
[1739453648775,0.00054611,96323.0,96322.0,0.32960365]
[1739453648989,0.00054611,96323.0,96322.0,0.30660365]
[1739453649199,0.00054611,96323.0,96322.0,0.29960365]
[1739453649409,0.00054611,96323.0,96322.0,0.2041]
[1739453649832,0.00054611,96323.0,96322.0,0.30764164]
[1739453650039,0.00054611,96323.0,96322.0,0.32260365]
[1739453650314,0.00054611,96323.0,96322.0,0.32960365]